bitfinex-derivatives/quotes_SOLF0:USTF0_20250127
["timestamp","ask_amount","ask_price","bid_price","bid_amount"]
[1737979679118,10.19751915,227.66,227.59,4.3961]
[1737979679119,4.3951,227.65,227.59,4.3961]
[1737979679319,4.3951,227.65,227.56,0.02948656]
[1737979679525,10.19751915,227.72,227.57,10.19751915]
[1737979679822,10.19751915,227.72,227.58,1.9323]
[1737979680017,14.59141915,227.72,227.66,4.3948]
[1737979680316,10.19751915,227.72,227.6,10.19751915]
[1737979680515,10.19751915,227.75,227.67,0.03117628]
[1737979680709,10.19751915,227.78,227.67,0.03117628]
[1737979681418,10.19751915,227.75,227.67,0.03117628]
[1737979681615,10.19751915,227.78,227.67,0.03117628]
[1737979682217,1.691,227.8,227.67,0.03117628]
[1737979682218,1.691,227.8,227.73,4.3935]
[1737979682418,1.691,227.8,227.67,0.03117628]
[1737979682716,14.58961915,227.81,227.74,4.3933]
[1737979683022,10.19751915,227.86,227.73,10.19751915]
[1737979683217,10.19751915,227.86,227.71,0.03247112]
[1737979683418,10.19751915,227.86,227.7,10.19751915]
[1737979683419,10.19751915,227.86,227.76,4.3929]
[1737979683720,10.19751915,227.86,227.76,0.03255572]
[1737979684222,10.19751915,227.83,227.76,0.03255572]
[1737979684618,1.1693,227.9,227.74,4.3931]
[1737979684619,16.28832242,227.86,227.74,4.3931]
[1737979684812,1.1693,227.89,227.77,0.02939335]
[1737979685022,16.28832242,227.82,227.62,16.28832242]
[1737979685313,16.28832242,227.78,227.62,16.28832242]
[1737979685520,16.28832242,227.78,227.59,3.5738]
[1737979685721,4.3942,227.7,227.6,4.3959]
[1737979686024,16.28832242,227.7,227.55,1.5744]
[1737979686419,0.03090448,227.67,227.63,0.02782515]
[1737979686822,4.3953,227.64,227.63,0.02782515]
[1737979687117,4.3953,227.64,227.49,1.6079]
[1737979687521,4.3953,227.64,227.55,4.397]
[1737979688123,16.28832242,227.66,227.46,106.61966419]
[1737979688321,0.02784278,227.62,227.57,0.02903063]
[1737979692822,16.3161652,227.62,227.57,0.02903063]
[1737979693019,4.3963,227.59,227.57,0.02903063]
[1737979694128,16.3161652,227.62,227.57,0.02903063]
[1737979694326,0.02784278,227.62,227.57,0.02903063]
[1737979695326,4.42354278,227.62,227.57,0.02903063]
[1737979695723,0.02784278,227.62,227.57,0.02903063]
[1737979696029,16.3161652,227.62,227.57,0.02903063]
[1737979696327,4.3962,227.6,227.57,0.02903063]
[1737979696628,0.02784278,227.62,227.57,0.02903063]
[1737979697026,0.02784278,227.62,227.57,4.42563063]
[1737979697326,0.02784278,227.62,227.57,0.02903063]
[1737979698323,0.02784278,227.62,227.61,4.3958]
[1737979698527,0.02784278,227.62,227.57,0.02903063]
[1737979698731,0.02784278,227.62,227.61,4.3958]
[1737979699325,16.28832242,227.75,227.57,0.02903063]
[1737979699525,4.3943,227.69,227.55,5.1156]
[1737979699722,16.28832242,227.75,227.55,5.1156]
[1737979700130,16.28832242,227.75,227.59,4.3962]
[1737979700330,16.28832242,227.75,227.55,5.1156]
[1737979700526,16.28832242,227.71,227.55,5.1156]
[1737979700732,4.3949,227.66,227.65,0.03099294]
[1737979701134,16.28832242,227.67,227.55,1.9633]
[1737979701330,16.28832242,227.67,227.49,3.2513]
[1737979701530,3.6123,227.66,227.49,3.2513]
[1737979701730,3.6123,227.66,227.54,4.3972]
[1737979701731,4.3959,227.61,227.54,4.3972]
[1737979702234,0.02802732,227.6,227.55,0.03246511]
[1737979703133,0.02802732,227.6,227.56,4.3968]
[1737979703334,0.02802732,227.6,227.55,0.03246511]
[1737979703831,16.28832242,227.74,227.55,0.03246511]
[1737979704135,16.28832242,227.74,227.52,16.28832242]
[1737979704333,16.28832242,227.74,227.56,16.28832242]
[1737979704636,16.28832242,227.74,227.57,3.4744]
[1737979704836,0.03291957,227.68,227.63,0.02897126]
[1737979706335,0.03291957,227.68,227.64,4.3952]
[1737979707033,0.03291957,227.68,227.63,4.42437126]
[1737979707233,0.03291957,227.68,227.63,0.02897126]
[1737979708838,10.22217777,227.68,227.63,0.02897126]
[1737979709434,14.61687777,227.68,227.63,0.02897126]
[1737979709635,10.22217777,227.68,227.63,0.02897126]
[1737979710036,4.3949,227.67,227.63,0.02897126]
[1737979710235,10.22217777,227.68,227.63,0.02897126]
[1737979710737,10.1892582,227.64,227.63,0.02897126]
[1737979711135,14.5845582,227.64,227.63,0.02897126]
[1737979712132,4.3963,227.59,227.48,3.6567]
[1737979712838,4.3963,227.59,227.52,4.3974]
[1737979713031,16.31975452,227.64,227.48,3.6567]
[1737979713232,16.31975452,227.64,227.53,0.03000602]
[1737979713233,4.3972,227.54,227.53,0.03000602]
[1737979714838,4.3978,227.51,227.43,4.3991]
[1737979715037,16.31975452,227.55,227.43,4.3993]
[1737979715233,16.31975452,227.55,227.42,3.4832]
[1737979715640,16.31975452,227.55,227.43,4.3992]
[1737979715837,16.31975452,227.55,227.42,3.4832]
[1737979716036,0.02802034,227.51,227.47,0.03042563]
[1737979716439,16.34777486,227.51,227.47,0.03042563]
[1737979716636,4.398,227.5,227.47,0.03042563]
[1737979716836,16.34777486,227.51,227.47,0.03042563]
[1737979717145,0.02802034,227.51,227.47,0.03042563]
[1737979717841,4.3983,227.49,227.47,0.03042563]
[1737979718145,0.02802034,227.51,227.47,0.03042563]
[1737979718944,0.02802034,227.51,227.49,4.3981]
[1737979719144,0.02802034,227.51,227.47,0.03042563]
[1737979719645,0.02802034,227.51,227.48,4.3983]
[1737979720339,0.02802034,227.51,227.47,0.03042563]
[1737979721246,4.3982,227.49,227.47,0.03042563]
[1737979721443,0.02802034,227.51,227.47,0.03042563]
[1737979722248,4.42582034,227.51,227.47,0.03042563]
[1737979722745,0.02802034,227.51,227.47,0.03042563]
[1737979724643,4.398,227.5,227.47,0.03042563]
[1737979725147,16.34777486,227.51,227.39,1.5399]
[1737979725349,16.31975452,227.47,227.39,1.5399]
[1737979726152,4.3992,227.44,227.39,1.5399]
[1737979726447,4.3992,227.44,227.41,0.033192]
[1737979729850,4.3993,227.43,227.41,0.033192]
[1737979730151,16.31975452,227.43,227.35,1.9338]
[1737979730344,16.31975452,227.43,227.34,1.5882]
[1737979730546,4.4003,227.39,227.33,4.4011]
[1737979730949,16.31975452,227.39,227.27,2.0451]
[1737979731446,0.02888446,227.35,227.31,0.03344892]
[1737979731653,4.4012,227.34,227.31,0.03344892]
[1737979731849,0.02888446,227.35,227.31,0.03344892]
[1737979732353,4.42978446,227.35,227.31,0.03344892]
[1737979732850,0.02888446,227.35,227.31,0.03344892]
[1737979733752,16.31975452,227.44,227.31,0.03344892]
[1737979734151,20.71905452,227.44,227.38,4.4003]
[1737979734353,16.31975452,227.44,227.38,4.4003]
[1737979734748,20.71895452,227.44,227.38,4.4003]
[1737979735051,0.02996997,227.43,227.39,0.03336838]
[1737979735251,4.3993,227.43,227.27,2.0451]
[1737979735452,4.43150863,227.43,227.39,0.03075136]
[1737979735651,16.31975452,227.44,227.27,2.0451]
[1737979735856,4.3995,227.42,227.39,0.03333225]
[1737979736149,4.3995,227.42,227.27,2.0451]
[1737979736347,4.3995,227.42,227.38,0.02876259]
[1737979736552,0.03259724,227.37,227.36,4.4005]
[1737979736954,0.03259724,227.37,227.36,4.4007]
[1737979737260,0.03259724,227.37,227.34,0.03279938]
[1737979737751,0.03259724,227.37,227.36,4.4007]
[1737979741460,0.03259724,227.37,227.34,0.03279938]
[1737979741661,0.03259724,227.37,227.35,4.4009]
[1737979742060,0.03259724,227.37,227.34,0.03279938]
[1737979742763,14.61781851,227.35,227.34,0.03279938]
[1737979743261,10.282161,227.35,227.34,0.03279938]
[1737979744364,0.03259724,227.37,227.34,0.03279938]
[1737979745763,10.21691851,227.35,227.25,3.2101]
[1737979745964,10.21691851,227.32,227.25,3.2101]
[1737979746159,10.21691851,227.32,227.27,4.4024]
[1737979746462,10.21691851,227.32,227.21,2.0076]
[1737979746660,10.21691851,227.29,227.21,2.0076]
[1737979746867,10.25037199,227.29,227.24,0.030505]
[1737979747368,14.65247199,227.29,227.24,0.030505]
[1737979747561,10.25037199,227.29,227.24,0.030505]
[1737979748363,10.25037199,227.29,227.24,4.433505]
[1737979748671,0.03345348,227.29,227.24,0.030505]
[1737979749066,0.03345348,227.29,227.28,4.4022]
[1737979749871,0.03345348,227.29,227.24,0.030505]
[1737979751071,0.03345348,227.29,227.26,4.4026]
[1737979751773,0.03345348,227.29,227.24,0.030505]
[1737979752069,0.03345348,227.29,227.24,4.433305]
[1737979752468,0.03345348,227.29,227.24,0.030505]
[1737979752774,10.25037199,227.29,227.24,0.030505]
[1737979753268,4.4025,227.27,227.24,0.030505]
[1737979753871,10.25037199,227.29,227.24,0.030505]
[1737979754069,0.03345348,227.29,227.24,0.030505]
[1737979754471,0.03345348,227.29,227.28,4.4022]
[1737979754772,10.21691851,227.38,227.25,3.6038]
[1737979755373,4.4005,227.37,227.31,4.4015]
[1737979755568,10.21691851,227.35,227.25,3.6038]
[1737979755771,4.4011,227.34,227.32,0.0293896]
[1737979756468,10.21691851,227.35,227.32,0.0293896]
[1737979756772,10.21691851,227.35,227.19,1.5942]
[1737979757073,10.21691851,227.29,227.19,1.5942]
[1737979757768,10.21691851,227.32,227.22,0.0337545]
[1737979757970,7.724e-05,227.26,227.19,1.5942]
[1737979758171,10.21691851,227.35,227.19,1.5942]
[1737979759374,10.21691851,227.35,227.31,4.4015]
[1737979759767,10.21691851,227.35,227.32,4.4014]
[1737979760071,10.24885321,227.35,227.32,4.4014]
[1737979760474,14.64975321,227.35,227.32,4.4014]
[1737979760674,10.24885321,227.35,227.32,4.4014]
[1737979761277,10.24885321,227.35,227.31,0.03197577]
[1737979761776,10.21691851,227.32,227.31,0.03197577]
[1737979762671,10.24885321,227.35,227.31,0.03197577]
[1737979763078,0.0319347,227.35,227.31,0.03197577]
[1737979763278,0.0319347,227.35,227.34,4.4011]
[1737979763480,10.21691851,227.44,227.31,0.03197577]
[1737979763783,14.61611851,227.44,227.34,4.401]
[1737979763972,10.21691851,227.44,227.3,3.5621]
[1737979764671,0.03118543,227.39,227.35,0.03342523]
[1737979765071,0.03118543,227.39,227.37,4.4003]
[1737979765473,0.03118543,227.39,227.35,0.03342523]
[1737979765680,10.21691851,227.37,227.35,0.03342523]
[1737979766084,14.61751851,227.37,227.35,0.03342523]
[1737979766478,10.21691851,227.37,227.35,0.03342523]
[1737979766675,16.35631525,227.37,227.35,0.03342523]
[1737979767980,16.35631525,227.37,227.23,3.5144]
[1737979768186,16.35631525,227.33,227.23,3.5144]
[1737979768484,16.35631525,227.33,227.26,4.4025]
[1737979768985,4.4017,227.31,227.25,4.4027]
[1737979769185,0.03239025,227.32,227.27,0.03007208]
[1737979769583,4.4018,227.31,227.27,0.03007208]
[1737979769981,4.4022,227.28,227.27,0.03007208]
[1737979770482,16.35631525,227.29,227.15,3.6629]
[1737979771181,4.4028,227.25,227.18,4.4041]
[1737979771585,0.03102916,227.24,227.19,0.02790811]
[1737979773187,2.916e-05,227.24,227.19,0.02790811]
[1737979773489,2.916e-05,227.24,227.23,4.4032]
[1737979785196,2.916e-05,227.24,227.19,0.02790811]
[1737979787290,2.916e-05,227.24,227.19,4.43170811]
[1737979787493,2.916e-05,227.24,227.19,0.02790811]
[1737979788296,4.40322916,227.24,227.19,0.02790811]
[1737979788597,2.916e-05,227.24,227.19,0.02790811]
[1737979788793,4.4033,227.23,227.19,0.02790811]
[1737979790999,2.916e-05,227.24,227.19,0.02790811]
[1737979791200,2.916e-05,227.24,227.22,4.4034]
[1737979793102,2.916e-05,227.24,227.21,4.4036]
[1737979796803,2.916e-05,227.24,227.2,4.4037]
[1737979797406,2.916e-05,227.24,227.21,4.4035]
[1737979801804,2.916e-05,227.24,227.19,0.02790811]
[1737979802010,2.916e-05,227.24,227.19,4.43180811]
[1737979802309,2.916e-05,227.24,227.19,0.02790811]
[1737979802611,4.4035,227.22,227.19,0.02790811]
[1737979803104,10.22925126,227.22,227.19,0.02790811]
[1737979804108,2.916e-05,227.24,227.19,0.02790811]
[1737979804512,4.40312916,227.24,227.19,0.02790811]
[1737979805000,4.4032,227.23,227.19,0.02790811]
[1737979805708,2.916e-05,227.24,227.19,0.02790811]
[1737979806010,10.22925126,227.22,227.19,0.02790811]
[1737979806209,4.4043,227.18,227.1,2.0308]
[1737979806508,10.22925126,227.18,227.1,2.0308]
[1737979806700,10.22925126,227.18,227.11,4.4054]
[1737979806901,4.4046,227.16,227.1,2.0308]
[1737979807410,0.03099455,227.15,227.11,0.03283184]
[1737979809309,0.03099455,227.15,227.14,4.4049]
[1737979809508,10.22925126,227.25,227.11,0.03283184]
[1737979809710,10.22925126,227.25,227.09,100.70398623]
[1737979809910,10.22925126,227.28,227.12,10.22925126]
[1737979810107,10.22925126,227.28,227.13,3.5983]
[1737979810412,14.63165126,227.28,227.21,4.4035]
[1737979810711,0.03094343,227.27,227.22,0.02973457]
[1737979811714,0.03094343,227.27,227.26,4.4026]
[1737979812612,0.03094343,227.27,227.22,0.02973457]
[1737979813005,16.36043246,227.26,227.22,0.02973457]
[1737979813612,16.36043246,227.26,227.1,1.6064]
[1737979813814,16.36043246,227.22,227.1,1.6064]
[1737979814709,20.76383246,227.22,227.14,0.02833855]
[1737979814911,0.03203652,227.18,227.14,0.02833855]
[1737979815515,16.36043246,227.3,227.14,0.02833855]
[1737979815713,1.7057,227.33,227.15,16.36043246]
[1737979815910,4.4015,227.32,227.25,4.4027]
[1737979816115,1.7057,227.33,227.25,4.4027]
[1737979816614,0.03149301,227.31,227.27,0.03131778]
[1737979817314,16.36043246,227.3,227.11,16.36043246]
[1737979817613,4.4024,227.28,227.1,3.6197]
[1737979818008,16.36043246,227.34,227.14,16.36043246]
[1737979818409,16.36043246,227.34,227.22,0.03280119]
[1737979818614,0.02781733,227.26,227.22,0.03280119]
[1737979819417,0.02781733,227.26,227.24,4.403]
[1737979819612,0.02781733,227.26,227.22,0.03280119]
[1737979819817,16.36043246,227.38,227.22,0.03280119]
[1737979820018,16.36043246,227.38,227.3,4.4017]
[1737979820219,4.4004,227.38,227.22,16.36043246]
[1737979820416,4.4004,227.38,227.23,3.5537]
[1737979820618,16.36043246,227.42,227.23,3.5537]
[1737979820919,4.4005,227.37,227.23,3.5537]
[1737979821120,0.03070993,227.35,227.3,0.02966806]
[1737979821320,0.03070993,227.35,227.31,4.4015]
[1737979821519,0.03070993,227.35,227.3,0.02966806]
[1737979821922,4.4013,227.34,227.3,0.02966806]
[1737979822122,0.03070993,227.35,227.3,0.02966806]
[1737979822824,4.43160993,227.35,227.3,4.43146806]
[1737979823126,0.03070993,227.35,227.3,0.02966806]
[1737979823326,0.03070993,227.35,227.34,4.4011]
[1737979824227,1.4098,227.53,227.3,16.39010052]
[1737979824426,17.97643246,227.52,227.3,16.39010052]
[1737979824627,17.97643246,227.52,227.4,4.3998]
[1737979824921,17.97643246,227.52,227.3,16.36043246]
[1737979825326,0.0316398,227.43,227.39,0.02871697]
[1737979825627,4.399,227.45,227.41,4.3996]
[1737979825825,0.03224914,227.43,227.41,4.3996]
[1737979826026,0.03224914,227.43,227.3,16.36043246]
[1737979826227,0.03224914,227.43,227.4,4.43345911]
[1737979826522,0.03224914,227.43,227.4,4.3999]
[1737979826725,4.3996,227.42,227.39,0.03217254]
[1737979827226,0.03224914,227.43,227.39,0.03217254]
[1737979827831,0.03224914,227.43,227.42,4.3995]
[1737979829333,4.914e-05,227.43,227.42,4.3995]
[1737979831932,4.914e-05,227.43,227.39,0.03217254]
[1737979832433,4.914e-05,227.43,227.42,4.3995]
[1737979833532,4.914e-05,227.43,227.4,4.3999]
[1737979833732,4.3995,227.42,227.39,0.03217254]
[1737979833929,4.914e-05,227.43,227.39,0.03217254]
[1737979835033,4.914e-05,227.43,227.41,4.3995]
[1737979836132,4.914e-05,227.43,227.42,4.3995]
[1737979837433,4.914e-05,227.43,227.39,0.03217254]
[1737979837630,4.914e-05,227.43,227.4,4.3997]
[1737979837933,4.914e-05,227.43,227.39,0.03217254]
[1737979838126,4.914e-05,227.43,227.39,4.43217254]
[1737979838437,4.914e-05,227.43,227.39,0.03217254]
[1737979838831,16.3604816,227.43,227.39,0.03217254]
[1737979839237,4.3999,227.4,227.39,0.03217254]
[1737979839633,16.3604816,227.43,227.27,3.6435]
[1737979839836,16.36043246,227.38,227.27,2.0571]
[1737979840239,16.36043246,227.34,227.23,1.6664]
[1737979840636,16.36043246,227.34,227.2,3.642]
[1737979840840,0.02850262,227.31,227.26,0.03043749]
[1737979841240,16.36043246,227.3,227.26,0.03043749]
[1737979843240,16.36043246,227.3,227.04,19.40043246]
[1737979843440,16.36043246,227.25,227.12,2.0204]
[1737979843635,16.36043246,227.25,227.13,4.405]
[1737979843841,16.36043246,227.21,227.12,2.0204]
[1737979844437,13.80864793,227.21,227.14,0.03218507]
[1737979845143,4.4042,227.18,227.14,0.03218507]
[1737979845644,4.4380065,227.18,227.14,0.03218507]
[1737979846545,0.0338065,227.18,227.14,0.03218507]
[1737979851348,4.4023,227.28,227.17,4.4044]
[1737979851647,16.36043246,227.3,227.15,3.3588]
[1737979851848,4.4017,227.31,227.24,4.403]
[1737979852447,16.36043246,227.34,227.15,3.3588]
[1737979852648,0.03091066,227.3,227.25,0.02891809]
[1737979853747,4.4024,227.28,227.25,0.02891809]
[1737979853948,0.03091066,227.3,227.25,0.02891809]
[1737979856345,4.4026,227.26,227.25,0.02891809]
[1737979856647,16.36043246,227.26,227.15,3.3588]
[1737979856847,4.4037,227.21,227.15,3.3588]
[1737979857050,16.36043246,227.26,227.15,3.3588]
[1737979857450,4.4034,227.22,227.15,3.3588]
[1737979857645,16.36043246,227.26,227.12,4.4053]
[1737979857852,0.03376075,227.17,227.13,0.03202792]
[1737979858050,16.36043246,227.22,227.13,0.03202792]
[1737979858249,0.03104552,227.17,227.13,0.03202792]
[1737979859954,0.03104552,227.17,227.15,4.4047]
[1737979860153,0.03104552,227.17,227.13,0.03202792]
[1737979861049,0.03104552,227.17,227.14,4.4049]
[1737979861352,0.03104552,227.17,227.13,0.03202792]
[1737979861754,4.43544552,227.17,227.13,0.03202792]
[1737979862158,0.03104552,227.17,227.13,0.03202792]
[1737979863056,4.4049,227.14,227.13,0.03202792]
[1737979865157,16.36043246,227.14,227.0,1.6498]
[1737979865356,16.36043246,227.18,227.0,1.6498]
[1737979865758,16.36043246,227.14,227.0,1.6498]
[1737979866258,0.02779795,227.09,227.05,0.03084893]
[1737979866760,4.43389795,227.09,227.05,0.03084893]
[1737979867354,0.02779795,227.09,227.05,0.03084893]
[1737979867554,4.4063,227.08,227.05,0.03084893]
[1737979868160,0.02779795,227.09,227.05,0.03084893]
[1737979868862,4.4065,227.06,227.05,0.03084893]
[1737979871862,16.36043246,227.06,226.9,2.0353]
[1737979872161,16.36043246,227.0,226.9,2.0353]
[1737979873066,0.03127412,226.97,226.93,0.03063806]
[1737979873465,0.03127412,226.97,226.93,4.43963806]
[1737979874766,0.03127412,226.97,226.93,0.03063806]
[1737979876066,0.03127412,226.97,226.93,4.43963806]
[1737979876266,0.03127412,226.97,226.93,0.03063806]
[1737979877363,4.4086,226.95,226.93,0.03063806]
[1737979877567,4.4086,226.95,226.87,4.4102]
[1737979877769,0.03127412,226.97,226.86,1.6481]
[1737979878566,0.03127412,226.97,226.92,4.409]
[1737979878761,0.03127412,226.97,226.89,0.02787012]
[1737979879565,0.03127412,226.97,226.96,4.4084]
[1737979880968,0.03127412,226.97,226.95,4.4086]
[1737979881265,0.03127412,226.97,226.94,0.03042728]
[1737979883372,0.03127412,226.97,226.94,4.43922728]
[1737979884175,0.03127412,226.97,226.96,4.4084]
[1737979884873,0.03127412,226.97,226.95,4.4086]
[1737979885469,0.03127412,226.97,226.94,0.03042728]
[1737979888082,0.03127412,226.97,226.95,4.4086]
[1737979888276,0.03127412,226.97,226.94,0.03042728]
[1737979889582,0.03127412,226.97,226.95,4.4084]
[1737979889886,0.03127412,226.97,226.94,0.03042728]
[1737979890285,0.03127412,226.97,226.95,4.4086]
[1737979890480,10.25353932,227.03,226.94,0.03042728]
[1737979890785,10.25353932,227.1,226.95,10.25353932]
[1737979891077,10.25353932,227.1,226.96,3.5883]
[1737979891278,10.25353932,227.04,226.96,3.5883]
[1737979891683,0.03265183,227.02,226.98,0.03274544]
[1737979892077,10.25353932,227.01,226.98,0.03274544]
[1737979893084,10.25353932,227.01,226.87,3.7521]
[1737979893285,10.25353932,226.96,226.87,3.7521]
[1737979893483,10.25353932,226.99,226.87,3.7521]
[1737979893885,4.4082,226.98,226.91,4.4092]
[1737979894081,4.4082,226.98,226.91,4.4411819]
[1737979894288,10.25353932,226.99,226.91,0.0319819]
[1737979894289,0.03006809,226.95,226.91,0.0319819]
[1737979895085,10.25353932,227.05,226.91,0.0319819]
[1737979895286,10.25353932,227.05,226.92,10.25353932]
[1737979895677,10.25353932,227.05,226.96,4.4083]
[1737979895883,10.25353932,227.05,226.93,1.766]
[1737979896190,14.66023932,227.05,226.96,4.4083]
[1737979896382,0.03289381,227.01,226.97,0.03248957]
[1737979897090,10.25353932,226.99,226.97,0.03248957]
[1737979897891,4.408,226.98,226.97,0.03248957]
[1737979898491,14.66143932,226.99,226.97,0.03248957]
[1737979898692,4.4079,226.99,226.97,0.03248957]
[1737979898992,0.03289381,227.01,226.97,0.03248957]
[1737979899187,4.408,226.98,226.97,0.03248957]
[1737979900994,4.408,226.98,226.87,2.1042]
[1737979901187,4.408,226.98,226.82,1.5991]
[1737979901188,16.40551385,226.93,226.82,1.5991]
[1737979901991,4.4098,226.9,226.83,4.4108]
[1737979902192,0.03277859,226.9,226.86,0.03039292]
[1737979903091,4.4101,226.88,226.86,0.03039292]
[1737979903294,0.03277859,226.9,226.86,0.03039292]
[1737979905188,4.4098,226.89,226.86,0.03039292]
[1737979905991,4.4102,226.87,226.86,0.03039292]
[1737979907994,4.4099,226.89,226.86,0.03039292]
[1737979908294,0.03277859,226.9,226.86,0.03039292]
[1737979908495,4.4101,226.88,226.86,0.03039292]
[1737979910195,0.03277859,226.9,226.86,0.03039292]
[1737979910395,4.4102,226.87,226.86,0.03039292]
[1737979910594,16.40551385,226.89,226.75,1.6363]
[1737979910896,4.4108,226.84,226.78,4.4117]
[1737979911494,16.40551385,226.89,226.75,1.6363]
[1737979911695,0.03098696,226.83,226.79,0.02960005]
[1737979911898,16.40551385,226.93,226.75,1.6363]
[1737979912194,0.02804877,226.83,226.82,4.4111]
[1737979912395,4.41,226.88,226.82,4.4111]
[1737979912696,0.03029934,226.85,226.82,4.4111]
[1737979914197,0.03029934,226.85,226.8,0.02999026]
[1737979914998,16.40551385,226.97,226.8,0.02999026]
[1737979915199,16.40551385,226.97,226.79,16.40551385]
[1737979915499,1.3596,227.02,226.83,16.40551385]
[1737979915699,3.7414,227.03,226.84,3.8117]
[1737979915998,4.408,226.98,226.84,3.8117]
[1737979916194,0.03110228,226.96,226.91,0.03332872]
[1737979916596,4.43950228,226.96,226.91,0.03332872]
[1737979916899,16.43661613,226.96,226.91,0.03332872]
[1737979917299,4.4092,226.92,226.91,0.03332872]
[1737979920399,16.43661613,226.96,226.91,0.03332872]
[1737979920600,0.03110228,226.96,226.91,0.03332872]
[1737979921501,0.03110228,226.96,226.93,4.4088]
[1737979921700,0.03110228,226.96,226.91,0.03332872]
[1737979923108,0.03110228,226.96,226.93,4.409]
[1737979923610,0.03110228,226.96,226.91,0.03332872]
[1737979923811,0.03110228,226.96,226.92,4.409]
[1737979924303,16.40551385,227.08,226.91,0.03332872]
[1737979924505,16.40551385,227.08,226.9,16.40551385]
[1737979924709,16.40551385,227.04,226.88,3.04]
[1737979924905,4.4077,227.0,226.92,4.409]
[1737979925108,16.40551385,227.04,226.88,3.04]
[1737979925510,0.0280434,226.98,226.94,0.03026649]
[1737979926709,0.0280434,226.98,226.95,4.4085]
[1737979927510,0.0280434,226.98,226.94,4.43906649]
[1737979929607,0.0280434,226.98,226.94,0.03026649]
[1737979930110,0.0280434,226.98,226.94,4.43906649]
[1737979930709,0.0280434,226.98,226.94,0.03026649]
[1737979932712,0.0280434,226.98,226.96,4.4084]
[1737979933707,10.25314318,227.1,226.96,10.25314318]
[1737979933911,10.25314318,227.1,226.97,3.6384]
[1737979934107,10.25314318,227.1,227.04,4.4068]
[1737979934308,10.25314318,227.1,226.97,3.6384]
[1737979934807,0.0309392,227.06,227.01,0.02853483]
[1737979935312,0.0309392,227.06,227.03,4.407]
[1737979937314,0.0309392,227.06,227.01,0.02853483]
[1737979937515,10.25314318,227.13,227.05,4.4067]
[1737979937716,10.25314318,227.13,226.99,10.25314318]
[1737979937917,14.65964318,227.07,227.0,4.4075]
[1737979938114,10.25314318,227.07,227.0,4.4075]
[1737979938416,4.4065,227.06,227.0,4.4075]
[1737979938716,10.25314318,227.04,227.01,0.03302024]
[1737979939117,4.4078,227.0,226.93,4.409]
[1737979939319,10.25314318,226.99,226.91,90.55476024]
[1737979939719,10.25314318,226.99,226.89,3.7719]
[1737979939913,10.25314318,226.96,226.89,3.7719]
[1737979940316,0.03151493,226.95,226.9,0.03214023]
[1737979941319,10.25314318,226.93,226.9,0.03214023]
[1737979941515,14.66214318,226.93,226.9,0.03214023]
[1737979942522,0.03151493,226.95,226.9,4.44154023]
[1737979943124,0.03151493,226.95,226.9,0.03214023]
[1737979944722,0.03151493,226.95,226.91,4.4093]
[1737979944929,0.03151493,226.95,226.9,0.03214023]
[1737979945330,0.03151493,226.95,226.94,4.4088]
[1737979945830,0.03151493,226.95,226.9,0.03214023]
[1737979946030,0.03151493,226.95,226.92,4.4092]
[1737979947928,0.03151493,226.95,226.9,0.03214023]
[1737979948232,0.03151493,226.95,226.94,4.4088]
[1737979952332,16.41069977,227.07,226.9,0.03214023]
[1737979952529,16.41069977,227.07,226.88,16.41069977]
[1737979952833,4.407,227.04,226.98,4.4079]
[1737979953030,16.41069977,227.07,226.88,16.41069977]
[1737979953334,0.0284425,227.0,226.95,0.03255132]
[1737979953528,4.4068,227.05,226.88,16.41069977]
[1737979953734,0.03313288,227.0,226.92,0.03244099]
[1737979953930,0.03313288,227.0,226.88,16.41069977]
[1737979954135,0.03313288,227.0,226.94,0.03327703]
[1737979954635,0.03313288,227.0,226.97,4.4081]
[1737979954837,0.03313288,227.0,226.94,0.03327703]
[1737979955237,0.03313288,227.0,226.96,4.4084]
[1737979956134,0.03313288,227.0,226.94,0.03327703]
[1737979956636,0.03313288,227.0,226.99,4.4078]
[1737979960140,0.03313288,227.0,226.97,4.4081]
[1737979960333,0.03313288,227.0,226.95,3.7381]
[1737979960840,0.03313288,227.0,226.97,4.4081]
[1737979961343,0.03313288,227.0,226.95,3.7381]
[1737979961540,0.03313288,227.0,226.98,4.408]
[1737979962637,0.03313288,227.0,226.95,3.7381]
[1737979962842,0.03313288,227.0,226.99,4.4078]
[1737979964846,0.03313288,227.0,226.95,3.7381]
[1737979965042,0.03313288,227.0,226.97,4.4081]
[1737979965449,0.03313288,227.0,226.98,4.4079]
[1737979965645,10.24907475,227.14,226.96,10.24907475]
[1737979965950,10.24907475,227.17,227.03,10.24907475]
[1737979966149,5.2804,227.22,227.06,10.24907475]
[1737979966150,10.24907475,227.2,227.06,10.24907475]